fUSD/lending_fUSD_20260608
["ID","MTS","AMOUNT","RATE_DAILY","PERIOD"]
[424416752,1780858263000,-870.1035,0.00029863,7]
[424416749,1780858263000,-870.1035,0.00029863,7]
[424416743,1780858263000,-870.1035,0.00029863,7]
[424416739,1780858263000,-870.1035,0.00029863,7]
[424416745,1780858263000,-870.1035,0.00029863,7]
[424416740,1780858263000,-870.1035,0.00029863,7]
[424416741,1780858263000,-870.1035,0.00029863,7]
[424416744,1780858263000,-870.1035,0.00029863,7]
[424416746,1780858263000,-870.1035,0.00029863,7]
[424416751,1780858263000,-870.1035,0.00029863,7]
[424416742,1780858263000,-870.1035,0.00029863,7]
[424416750,1780858263000,-870.1035,0.00029863,7]
[424416755,1780858263000,-870.10506048,0.00029863,7]
[424416759,1780858263000,-2340.2275,0.00029863,7]
[424416753,1780858263000,-870.1035,0.00029863,7]
[424416754,1780858263000,-870.1035,0.00029863,7]
[424416758,1780858263000,-2340.2275,0.00029863,7]
[424416757,1780858263000,-2340.2275,0.00029863,7]
[424416760,1780858263000,-2340.2275,0.00029863,7]
[424416770,1780858263000,-2340.2275,0.00029863,7]
[424416761,1780858263000,-2340.2275,0.00029863,7]
[424416768,1780858263000,-2340.2275,0.00029863,7]
[424416764,1780858263000,-2340.2275,0.00029863,7]
[424416762,1780858263000,-2340.2275,0.00029863,7]
[424416738,1780858263000,-870.1035,0.00029863,7]
[424416756,1780858263000,-2340.2275,0.00029863,7]
[424416736,1780858263000,-870.1035,0.00029863,7]
[424416763,1780858263000,-2340.2275,0.00029863,7]
[424416748,1780858263000,-870.1035,0.00029863,7]
[424416722,1780858263000,-577.5815,0.00029863,7]
[424416723,1780858263000,-577.5815,0.00029863,7]
[424416712,1780858263000,-920.5938,0.00029863,7]
[424416711,1780858263000,-920.5938,0.00029863,7]
[424416715,1780858263000,-920.59545452,0.00029863,7]
[424416714,1780858263000,-920.5938,0.00029863,7]
[424416713,1780858263000,-920.5938,0.00029863,7]
[424416721,1780858263000,-577.5815,0.00029863,7]
[424416716,1780858263000,-577.5815,0.00029863,7]
[424416720,1780858263000,-577.5815,0.00029863,7]
[424416717,1780858263000,-577.5815,0.00029863,7]
[424416718,1780858263000,-577.5815,0.00029863,7]
[424416747,1780858263000,-870.1035,0.00029863,7]
[424416719,1780858263000,-577.5815,0.00029863,7]
[424416726,1780858263000,-577.5815,0.00029863,7]
[424416728,1780858263000,-577.5815,0.00029863,7]
[424416727,1780858263000,-577.5815,0.00029863,7]
[424416729,1780858263000,-577.5815,0.00029863,7]
[424416732,1780858263000,-577.5815,0.00029863,7]
[424416725,1780858263000,-577.5815,0.00029863,7]
[424416734,1780858263000,-577.5815,0.00029863,7]
[424416731,1780858263000,-577.5815,0.00029863,7]
[424416735,1780858263000,-577.58309459,0.00029863,7]
[424416733,1780858263000,-577.5815,0.00029863,7]
[424416730,1780858263000,-577.5815,0.00029863,7]
[424416737,1780858263000,-870.1035,0.00029863,7]
[424416724,1780858263000,-577.5815,0.00029863,7]
[424416767,1780858263000,-2340.2275,0.00029863,7]
[424416795,1780858263000,-329.26,0.0003,11]
[424416766,1780858263000,-2340.2275,0.00029863,7]
[424416800,1780858263000,-527.81206566,0.0003,30]
[424416799,1780858263000,-400.0,0.0003,20]
[424416804,1780858263000,-300.0,0.0003,30]
[424416801,1780858263000,-166.15886798,0.0003,2]
[424416803,1780858263000,-244.60217853,0.0003,2]
[424416805,1780858263000,-11358.41815074,0.0003,2]
[424416815,1780858263000,-330.0,0.0003,2]
[424416814,1780858263000,-420.0,0.0003,2]
[424416813,1780858263000,-500.0,0.0003,2]
[424416806,1780858263000,-7731.10832515,0.0003,20]
[424416810,1780858263000,-500.0,0.0003,2]
[424416807,1780858263000,-900.39056387,0.0003,10]
[424416802,1780858263000,-369.06159476,0.0003,30]
[424416809,1780858263000,-1129.58371014,0.0003,5]
[424416812,1780858263000,-220.0,0.0003,2]
[424416818,1780858263000,-508.939,0.0003,10]
[424416816,1780858263000,-230.0,0.0003,2]
[424416817,1780858263000,-150.0,0.0003,2]
[424416822,1780858263000,-215.83393831,0.0003,30]
[424416820,1780858263000,-650.0,0.0003,2]
[424416823,1780858263000,-195.042,0.0003,22]
[424416819,1780858263000,-200.0,0.0003,7]
[424416821,1780858263000,-200.0,0.0003,2]
[424416825,1780858263000,-1514.40746,0.0003,2]
[424416824,1780858263000,-200.0,0.0003,2]
[424416769,1780858263000,-2340.2275,0.00029863,7]
[424416811,1780858263000,-390.0,0.0003,2]
[424416797,1780858263000,-177.43738511,0.0003,2]
[424416808,1780858263000,-301.0,0.0003,28]
[424416794,1780858263000,-200.0,0.0003,11]
[424416796,1780858263000,-300.0,0.0003,30]
[424416765,1780858263000,-2340.2275,0.00029863,7]
[424416771,1780858263000,-2340.2275,0.00029863,7]
[424416772,1780858263000,-2340.2275,0.00029863,7]
[424416775,1780858263000,-2340.22809549,0.00029863,7]
[424416774,1780858263000,-2340.2275,0.00029863,7]
[424416773,1780858263000,-2340.2275,0.00029863,7]
[424416777,1780858263000,-1799.7,0.00029872,2]
[424416780,1780858263000,-17282.68199232,0.000299,2]
[424416781,1780858263000,-517.07,0.000299,7]
[424416778,1780858263000,-1030.77,0.00029894,30]
[424416776,1780858263000,-400.0,0.0002987,2]
[424416783,1780858263000,-1107.53544026,0.000299,2]
[424416779,1780858263000,-150.0,0.00029899,2]
[424416826,1780858263000,-200.0,0.0003,2]
[424416784,1780858263000,-615.03,0.00029909,2]
[424416798,1780858263000,-17149.40413627,0.0003,2]
[424416793,1780858263000,-200.0,0.0003,11]
[424416786,1780858263000,-889.82,0.00029969,2]
[424416788,1780858263000,-1030.77,0.00029988,30]
[424416790,1780858263000,-152.0,0.00029993,27]
[424416791,1780858263000,-259.51,0.00029999,3]
[424416789,1780858263000,-241.69834083,0.0002999,2]
[424416787,1780858263000,-2468.3,0.00029969,2]
[424416785,1780858263000,-1030.77,0.00029941,30]
[424416782,1780858263000,-400.0,0.000299,10]
[424416792,1780858263000,-200.0,0.0003,11]
[424416843,1780858264000,-205.59523308,0.0003013,2]
[424416846,1780858264000,-300.0,0.0003013,30]
[424416844,1780858264000,-480.34785766,0.0003013,2]
[424416845,1780858264000,-170.99505529,0.0003013,20]
[424416849,1780858264000,-232.78956258,0.00030134,7]
[424416848,1780858264000,-4671275.54527667,0.0003013,7]
[424416856,1780858264000,-200.0,0.00030137,120]
[424416850,1780858264000,-248.30886675,0.00030135,7]
[424416851,1780858264000,-500.0,0.00030136,30]
[424416852,1780858264000,-530.18016015,0.00030136,30]
[424416853,1780858264000,-150.0,0.00030136,2]
[424416842,1780858264000,-364.57,0.0003013,15]
[424416847,1780858264000,-302.57116124,0.0003013,2]
[424416840,1780858264000,-151.0,0.00030127,7]
[424416827,1780858264000,-2000.0,0.0003,7]
[424416833,1780858264000,-163.0,0.0003002,30]
[424416831,1780858264000,-163.0,0.0003002,30]
[424416830,1780858264000,-665.09,0.00030014,7]
[424416832,1780858264000,-163.0,0.0003002,30]
[424416839,1780858264000,-422.98910169,0.000301,30]
[424416828,1780858264000,-151.0,0.00030007,60]
[424416838,1780858264000,-200.0,0.000301,11]
[424416837,1780858264000,-1030.77,0.00030082,30]
[424416835,1780858264000,-1030.77,0.00030035,30]
[424416836,1780858264000,-455.75237973,0.00030082,14]
[424416834,1780858264000,-8813.77996503,0.0003003,2]
[424416829,1780858264000,-179.97120458,0.00030014,2]
[424416857,1780858264000,-400.0,0.00030137,30]
[424416841,1780858264000,-1030.77,0.00030129,30]
[424416855,1780858264000,-273.05,0.00030137,5]
[424416854,1780858264000,-217.75,0.00030137,2]
[424416859,1780858264000,-198.46,0.00030137,13]
[424416886,1780858264000,-250.0,0.00030137,2]
[424416885,1780858264000,-250.0,0.00030137,2]
[424416884,1780858264000,-250.0,0.00030137,2]
[424416883,1780858264000,-250.0,0.00030137,2]
[424416882,1780858264000,-500.0,0.00030137,3]
[424416881,1780858264000,-151.90666753,0.00030137,5]
[424416880,1780858264000,-220.09,0.00030137,120]
[424416877,1780858264000,-500.0,0.00030137,3]
[424416879,1780858264000,-1871.0,0.00030137,120]
[424416878,1780858264000,-500.0,0.00030137,3]
[424416875,1780858264000,-500.0,0.00030137,3]
[424416876,1780858264000,-500.0,0.00030137,3]
[424416874,1780858264000,-500.0,0.00030137,3]
[424416887,1780858264000,-250.0,0.00030137,2]
[424416872,1780858264000,-506.8046996,0.00030137,120]
[424416870,1780858264000,-180.4825,0.00030137,30]
[424416871,1780858264000,-501.91523565,0.00030137,120]
[424416869,1780858264000,-2023.7943128,0.00030137,120]
[424416867,1780858264000,-1000.0,0.00030137,120]
[424416868,1780858264000,-2500.0,0.00030137,120]
[424416864,1780858264000,-2500.0,0.00030137,120]
[424416866,1780858264000,-2500.0,0.00030137,120]
[424416865,1780858264000,-1000.0,0.00030137,120]
[424416863,1780858264000,-236.44212167,0.00030137,2]
[424416862,1780858264000,-541.05870056,0.00030137,2]
[424416861,1780858264000,-360.70580037,0.00030137,2]
[424416858,1780858264000,-198.47,0.00030137,13]
[424416860,1780858264000,-180.35290019,0.00030137,2]
[424416873,1780858264000,-1056.10311775,0.00030137,120]
[424416888,1780858264000,-250.0,0.00030137,2]
[424416890,1780858265000,-150.0,0.00030137,2]
[424416891,1780858265000,-11008.6018775,0.00030137,120]
[424416889,1780858265000,-500.0,0.00030137,3]
[424416894,1780858266000,-500.0,0.00013952,2]
[424416893,1780858266000,-500.0,0.00013952,2]
[424416892,1780858266000,-20503.00384075,0.00030137,120]
[424416924,1780858267000,-160.67,0.00030137,2]
[424416936,1780858267000,-930.00000016,0.00030137,120]
[424416934,1780858267000,-930.00006215,0.00030137,120]
[424416935,1780858267000,-930.00000311,0.00030137,120]
[424416932,1780858267000,-930.0248596,0.00030137,120]
[424416925,1780858267000,-160.67,0.00030137,2]
[424416927,1780858267000,-160.67,0.00030137,2]
[424416929,1780858267000,-1128.87676994,0.00030137,120]
[424416926,1780858267000,-160.67,0.00030137,2]
[424416922,1780858267000,-160.67,0.00030137,2]
[424416923,1780858267000,-160.67,0.00030137,2]
[424416928,1780858267000,-160.67,0.00030137,2]
[424416942,1780858267000,-410.59,0.00030137,120]
[424416939,1780858267000,-615.03,0.00030137,30]
[424416938,1780858267000,-929.99999999,0.00030137,120]
[424416953,1780858267000,-2000.0,0.00030137,2]
[424416943,1780858267000,-261.49,0.00030137,2]
[424416941,1780858267000,-189.09,0.00030137,120]
[424416940,1780858267000,-615.03,0.00030137,2]
[424416933,1780858267000,-930.00124298,0.00030137,120]
[424416944,1780858267000,-259.88,0.00030137,2]
[424416952,1780858267000,-157.82801482,0.00030137,30]
[424416950,1780858267000,-200.0,0.00030137,2]
[424416946,1780858267000,-259.67,0.00030137,2]
[424416954,1780858267000,-200.0,0.00030137,2]
[424416951,1780858267000,-500.0,0.00030137,30]
[424416937,1780858267000,-930.00000001,0.00030137,120]
[424416921,1780858267000,-160.67,0.00030137,2]
[424416906,1780858267000,-215.83393831,0.0003,10]
[424416931,1780858267000,-930.49719192,0.00030137,120]
[424416948,1780858267000,-2388.85,0.00030137,7]
[424416895,1780858267000,-500.0,0.00013952,2]
[424416899,1780858267000,-500.0,0.00013952,2]
[424416896,1780858267000,-500.0,0.00013952,2]
[424416897,1780858267000,-500.0,0.00013952,2]
[424416898,1780858267000,-500.0,0.00013952,2]
[424416900,1780858267000,-633.28363338,0.00013952,2]
[424416901,1780858267000,-150.0,0.00013952,2]
[424416909,1780858267000,-3895.61839148,0.00030137,120]
[424416908,1780858267000,-1004.94152925,0.00030137,120]
[424416903,1780858267000,-307.41,0.00025,2]
[424416905,1780858267000,-215.83393831,0.000288,10]
[424416919,1780858267000,-160.67,0.00030137,2]
[424416907,1780858267000,-9145.31623486,0.00030137,120]
[424416904,1780858267000,-307.41,0.00025,2]
[424416911,1780858267000,-307.41,0.00025,2]
[424416910,1780858267000,-307.41,0.00025,2]
[424416912,1780858267000,-16215.64570069,0.00030137,120]
[424416913,1780858267000,-8850.09918454,0.00030137,120]
[424416914,1780858267000,-1415.21555282,0.00030137,120]
[424416916,1780858267000,-317.17109521,0.00030137,2]
[424416917,1780858267000,-214.93755166,0.00030137,120]
[424416915,1780858267000,-500.0,0.00030137,3]
[424416918,1780858267000,-160.67,0.00030137,2]
[424416920,1780858267000,-160.67,0.00030137,2]
[424416930,1780858267000,-939.9438385,0.00030137,120]
[424416902,1780858267000,-150.0,0.0002058,2]
[424416947,1780858267000,-261.54,0.00030137,2]
[424416992,1780858267000,-508.77255924,0.00030251,2]
[424416945,1780858267000,-259.45,0.00030137,2]
[424416982,1780858267000,-396.09,0.00030248,2]
[424416984,1780858267000,-726.4317882,0.00030248,2]
[424416987,1780858267000,-151.0,0.00030249,2]
[424416981,1780858267000,-268.45568422,0.00030247,2]
[424416989,1780858267000,-493.07469103,0.00030251,2]
[424416988,1780858267000,-349.41460925,0.00030251,2]
[424416990,1780858267000,-472.88424334,0.00030251,2]
[424416994,1780858267000,-412.01853594,0.00030251,2]
[424417006,1780858267000,-310.73262949,0.00030251,2]
[424416996,1780858267000,-168.48526091,0.00030251,2]
[424416993,1780858267000,-385.00389895,0.00030251,2]
[424416995,1780858267000,-531.34062683,0.00030251,2]
[424416985,1780858267000,-639.01520984,0.00030248,2]
[424417004,1780858267000,-665.26089846,0.00030251,2]
[424416998,1780858267000,-586.89655717,0.00030251,2]
[424417002,1780858267000,-310.98492946,0.00030251,2]
[424416999,1780858267000,-347.03243489,0.00030251,2]
[424416997,1780858267000,-178.31940198,0.00030251,2]
[424417001,1780858267000,-160.95822262,0.00030251,2]
[424417000,1780858267000,-612.05602157,0.00030251,2]
[424417007,1780858267000,-380.18724358,0.00030251,2]
[424417009,1780858267000,-160.07332898,0.00030251,2]
[424417011,1780858267000,-474.79781471,0.00030251,2]
[424417010,1780858267000,-711.37397172,0.00030251,2]
[424417008,1780858267000,-783.91771993,0.00030251,2]
[424416949,1780858267000,-1357.7198346,0.00030137,2]
[424417005,1780858267000,-654.98387964,0.00030251,2]
[424416991,1780858267000,-443.13750586,0.00030251,2]
[424417003,1780858267000,-520.53989228,0.00030251,2]
[424416983,1780858267000,-638.45584208,0.00030248,2]
[424416956,1780858267000,-3113.43,0.00030137,7]
[424416955,1780858267000,-2110.0,0.00030137,2]
[424416957,1780858267000,-200.0,0.00030137,2]
[424416960,1780858267000,-683.4,0.00030144,7]
[424416958,1780858267000,-500.0,0.00030137,2]
[424416959,1780858267000,-738.7,0.00030144,7]
[424416962,1780858267000,-9691.5358164,0.00030149,2]
[424416964,1780858267000,-5078.3362928,0.00030149,2]
[424416966,1780858267000,-1030.77,0.00030176,30]
[424416961,1780858267000,-165.5392445,0.00030148,7]
[424416963,1780858267000,-170116.872518,0.00030149,2]
[424416967,1780858267000,-209.33382337,0.000302,120]
[424416969,1780858267000,-6001.42,0.000302,14]
[424416965,1780858267000,-2604.9354727,0.00030149,2]
[424416979,1780858267000,-644.0,0.00030246,2]
[424416986,1780858267000,-695.61602127,0.00030248,2]
[424416980,1780858267000,-173.39108417,0.00030247,2]
[424416976,1780858267000,-1175.4,0.00030239,2]
[424416975,1780858267000,-401.34065925,0.00030239,2]
[424416977,1780858267000,-400.22339923,0.00030243,2]
[424416973,1780858267000,-1030.77,0.00030224,30]
[424416978,1780858267000,-477.97455818,0.00030243,2]
[424416968,1780858267000,-198.77,0.000302,7]
[424416971,1780858267000,-155.385,0.000302,2]
[424416972,1780858267000,-1200.0,0.00030206,60]
[424416970,1780858267000,-403.34,0.000302,2]
[424416974,1780858267000,-235.0351682,0.00030225,5]
[424417054,1780858268000,-679.10323646,0.00030253,2]
[424417049,1780858268000,-323.50455513,0.00030253,2]
[424417055,1780858268000,-609.6864969,0.00030253,2]
[424417052,1780858268000,-375.24547879,0.00030253,2]
[424417053,1780858268000,-165.73098212,0.00030253,2]
[424417047,1780858268000,-496.51987758,0.00030253,2]
[424417048,1780858268000,-630.11413861,0.00030253,2]
[424417060,1780858268000,-330.20834776,0.00030253,2]
[424417059,1780858268000,-165.15997961,0.00030253,2]
[424417058,1780858268000,-417.36075876,0.00030253,2]
[424417041,1780858268000,-532.2767531,0.00030253,2]
[424417051,1780858268000,-515.66126021,0.00030253,2]
[424417050,1780858268000,-456.42531662,0.00030253,2]
[424417056,1780858268000,-369.91264789,0.00030253,2]
[424417072,1780858268000,-163.6145478,0.00030256,2]
[424417063,1780858268000,-517.36087129,0.00030253,2]
[424417062,1780858268000,-213.00847932,0.00030253,2]
[424417061,1780858268000,-164.62207252,0.00030253,2]
[424417065,1780858268000,-485.19989689,0.00030253,2]
[424417068,1780858268000,-161.7389733,0.00030253,2]
[424417070,1780858268000,-165.27089952,0.00030255,2]
[424417064,1780858268000,-477.25692815,0.00030253,2]
[424417069,1780858268000,-166.52729808,0.00030255,2]
[424417066,1780858268000,-300.49675311,0.00030253,2]
[424417067,1780858268000,-415.96292949,0.00030253,2]
[424417071,1780858268000,-164.34538277,0.00030256,2]
[424417084,1780858268000,-834.0,0.00030262,30]
[424417074,1780858268000,-162.18811269,0.00030256,2]
[424417042,1780858268000,-487.19242197,0.00030253,2]
[424417057,1780858268000,-722.47261006,0.00030253,2]
[424417039,1780858268000,-661.23539694,0.00030253,2]
[424417015,1780858268000,-538.26447505,0.00030252,2]
[424417044,1780858268000,-511.7451555,0.00030253,2]
[424417073,1780858268000,-169.28364483,0.00030256,2]
[424417013,1780858268000,-534.61358464,0.00030251,2]
[424417012,1780858268000,-309.52041774,0.00030251,2]
[424417018,1780858268000,-690.88000462,0.00030253,2]
[424417017,1780858268000,-405.99525545,0.00030253,2]
[424417014,1780858268000,-151.0,0.00030251,2]
[424417016,1780858268000,-408.0219301,0.00030253,2]
[424417020,1780858268000,-562.25302866,0.00030253,2]
[424417023,1780858268000,-620.90420225,0.00030253,2]
[424417022,1780858268000,-446.56170984,0.00030253,2]
[424417031,1780858268000,-169.03283746,0.00030253,2]
[424417024,1780858268000,-170.33087105,0.00030253,2]
[424417025,1780858268000,-648.94006436,0.00030253,2]
[424417029,1780858268000,-168.1122102,0.00030253,2]
[424417045,1780858268000,-170.98344185,0.00030253,2]
[424417021,1780858268000,-422.68839941,0.00030253,2]
[424417030,1780858268000,-333.40513952,0.00030253,2]
[424417019,1780858268000,-651.94300864,0.00030253,2]
[424417032,1780858268000,-437.24990071,0.00030253,2]
[424417026,1780858268000,-325.91409219,0.00030253,2]
[424417028,1780858268000,-463.23162783,0.00030253,2]
[424417033,1780858268000,-748.06552016,0.00030253,2]
[424417043,1780858268000,-519.30611322,0.00030253,2]
[424417034,1780858268000,-160.70852373,0.00030253,2]
[424417036,1780858268000,-315.71380565,0.00030253,2]
[424417040,1780858268000,-644.30273555,0.00030253,2]
[424417035,1780858268000,-169.05650429,0.00030253,2]
[424417046,1780858268000,-629.9964815,0.00030253,2]
[424417037,1780858268000,-721.41160075,0.00030253,2]
[424417038,1780858268000,-591.4631833,0.00030253,2]
[424417027,1780858268000,-421.84894562,0.00030253,2]
[424417079,1780858268000,-213.46758799,0.00030256,2]
[424417097,1780858268000,-483.0,0.00030281,30]
[424417075,1780858268000,-229.79757257,0.00030256,2]
[424417115,1780858268000,-469.93356297,0.00030359,2]
[424417114,1780858268000,-413.77427231,0.00030359,2]
[424417118,1780858268000,-568.98,0.00030365,7]
[424417123,1780858268000,-457.2794988,0.00030367,2]
[424417116,1780858268000,-179.97120458,0.00030362,2]
[424417122,1780858268000,-576.97513941,0.00030367,2]
[424417119,1780858268000,-477.96743717,0.00030367,2]
[424417120,1780858268000,-496.82236569,0.00030367,2]
[424417117,1780858268000,-1030.77,0.00030365,30]
[424417113,1780858268000,-720.49224456,0.00030359,2]
[424417121,1780858268000,-469.53832277,0.00030367,2]
[424417134,1780858268000,-330.07186949,0.00030367,2]
[424417125,1780858268000,-569.56384748,0.00030367,2]
[424417124,1780858268000,-622.51413012,0.00030367,2]
[424417136,1780858268000,-606.8201027,0.00030367,2]
[424417126,1780858268000,-467.65358941,0.00030367,2]
[424417131,1780858268000,-521.57241103,0.00030367,2]
[424417137,1780858268000,-688.7151701,0.00030367,2]
[424417130,1780858268000,-349.03194867,0.00030367,2]
[424417133,1780858268000,-682.70809675,0.00030367,2]
[424417135,1780858268000,-693.27051588,0.00030367,2]
[424417127,1780858268000,-625.72367358,0.00030367,2]
[424417132,1780858268000,-515.96456196,0.00030367,2]
[424417129,1780858268000,-662.45759873,0.00030367,2]
[424417138,1780858268000,-455.68329747,0.00030367,2]
[424417141,1780858268000,-850.74393251,0.00030367,2]
[424417142,1780858268000,-808.32750565,0.00030367,2]
[424417140,1780858268000,-569.61877349,0.00030367,2]
[424417078,1780858268000,-166.7167997,0.00030256,2]
[424417112,1780858268000,-657.30455111,0.00030359,2]
[424417104,1780858268000,-1030.77,0.00030318,30]
[424417128,1780858268000,-578.9975492,0.00030367,2]
[424417105,1780858268000,-508.31,0.00030327,7]
[424417081,1780858268000,-160.57368675,0.00030256,2]
[424417109,1780858268000,-152.0,0.00030349,28]
[424417077,1780858268000,-343.42377927,0.00030256,2]
[424417080,1780858268000,-341.33687667,0.00030256,2]
[424417082,1780858268000,-571.0,0.00030262,30]
[424417083,1780858268000,-929.0,0.00030262,30]
[424417085,1780858268000,-2308.0,0.00030262,30]
[424417088,1780858268000,-683.0,0.00030262,30]
[424417092,1780858268000,-500.0,0.0003027,14]
[424417087,1780858268000,-646.0,0.00030262,30]
[424417090,1780858268000,-962.0,0.00030262,30]
[424417089,1780858268000,-1257.0,0.00030262,30]
[424417091,1780858268000,-983.0,0.00030262,30]
[424417093,1780858268000,-1030.77,0.00030271,30]
[424417094,1780858268000,-2914.0,0.00030281,30]
[424417076,1780858268000,-165.44571878,0.00030256,2]
[424417096,1780858268000,-1524.0,0.00030281,30]
[424417095,1780858268000,-956.0,0.00030281,30]
[424417107,1780858268000,-949.16,0.00030327,7]
[424417101,1780858268000,-517.07,0.000303,7]
[424417108,1780858268000,-707.0,0.00030341,5]
[424417111,1780858268000,-464.38985486,0.00030359,2]
[424417103,1780858268000,-500.0,0.00030313,2]
[424417102,1780858268000,-2000.0,0.00030313,2]
[424417106,1780858268000,-611.25,0.00030327,7]
[424417110,1780858268000,-169.00496231,0.00030354,2]
[424417100,1780858268000,-827.49,0.00030298,7]
[424417139,1780858268000,-650.53264202,0.00030367,2]
[424417098,1780858268000,-500.0,0.00030283,10]
[424417086,1780858268000,-711.0,0.00030262,30]
[424417099,1780858268000,-151.0,0.00030287,4]
[424417164,1780858269000,-1030.77,0.00030506,30]
[424417172,1780858269000,-1030.77,0.00030553,30]
[424417168,1780858269000,-1274.0,0.00030538,2]
[424417169,1780858269000,-1227.0,0.00030538,2]
[424417171,1780858269000,-419.0,0.00030538,2]
[424417176,1780858269000,-1773.72,0.00030637,2]
[424417187,1780858269000,-179.97120458,0.00030709,2]
[424417186,1780858269000,-152.0,0.00030705,29]
[424417175,1780858269000,-410.59,0.0003063,120]
[424417177,1780858269000,-1054.03,0.00030671,7]
[424417185,1780858269000,-517.07,0.000307,7]
[424417181,1780858269000,-1314.8,0.00030674,7]
[424417179,1780858269000,-1145.35,0.00030674,7]
[424417182,1780858269000,-558.25,0.00030694,30]
[424417180,1780858269000,-875.97,0.00030674,7]
[424417183,1780858269000,-348.0,0.00030699,30]
[424417184,1780858269000,-198.77,0.000307,7]
[424417189,1780858269000,-200.0,0.00030743,2]
[424417188,1780858269000,-200.0,0.00030743,2]
[424417173,1780858269000,-6001.42,0.000306,14]
[424417199,1780858269000,-250.0,0.00030827,7]
[424417178,1780858269000,-1110.51,0.00030674,7]
[424417174,1780858269000,-1030.77,0.000306,30]
[424417153,1780858269000,-180.73,0.00030411,120]
[424417165,1780858269000,-1358.0,0.00030538,2]
[424417191,1780858269000,-615.03,0.00030746,30]
[424417148,1780858269000,-500.0,0.00030382,10]
[424417147,1780858269000,-200.0,0.0003037,2]
[424417144,1780858269000,-589.21693084,0.00030367,2]
[424417149,1780858269000,-410.59,0.00030384,120]
[424417145,1780858269000,-549.18676965,0.00030367,2]
[424417143,1780858269000,-741.86063637,0.00030367,2]
[424417146,1780858269000,-450.38589716,0.00030367,2]
[424417150,1780858269000,-571.86,0.00030391,2]
[424417152,1780858269000,-489.20435707,0.00030401,2]
[424417166,1780858269000,-2501.084,0.00030538,2]
[424417154,1780858269000,-1030.77,0.00030412,30]
[424417151,1780858269000,-1104.9,0.00030395,7]
[424417155,1780858269000,-200.0,0.00030438,2]
[424417156,1780858269000,-200.0,0.00030438,2]
[424417161,1780858269000,-13889.59007432,0.00030445,7]
[424417162,1780858269000,-1030.77,0.00030459,30]
[424417157,1780858269000,-200.0,0.00030438,2]
[424417159,1780858269000,-6540.3129851,0.00030445,7]
[424417160,1780858269000,-159.22136306,0.00030445,7]
[424417163,1780858269000,-315.34810608,0.00030491,2]
[424417167,1780858269000,-382.0,0.00030538,2]
[424417158,1780858269000,-151.0,0.00030442,7]
[424417192,1780858269000,-204.69,0.00030765,4]
[424417170,1780858269000,-3266.773,0.00030538,2]
[424417198,1780858269000,-250.0,0.00030827,7]
[424417221,1780858269000,-150.0,0.00030875,2]
[424417225,1780858269000,-410.59,0.00030877,120]
[424417231,1780858269000,-758.52512838,0.00030946,2]
[424417224,1780858269000,-707.0,0.00030875,6]
[424417230,1780858269000,-853.38512094,0.00030946,2]
[424417223,1780858269000,-186.35577983,0.00030875,2]
[424417226,1780858269000,-693.21,0.00030895,120]
[424417222,1780858269000,-150.0,0.00030875,2]
[424417228,1780858269000,-171.0,0.00030903,7]
[424417232,1780858269000,-860.89396263,0.00030946,2]
[424417220,1780858269000,-150.0,0.00030875,2]
[424417229,1780858269000,-828.07199841,0.00030946,2]
[424417233,1780858269000,-189.09,0.00030959,120]
[424417235,1780858269000,-366.06667208,0.00031,14]
[424417239,1780858269000,-1000.0,0.00031,14]
[424417236,1780858269000,-415.97483011,0.00031,120]
[424417242,1780858269000,-2755.42374962,0.00031,3]